[Event "Early-Titled-Tuesday-Blitz-February-27-2024"]
[Site "Chess.com"]
[Date "2024.02.27"]
[Round "1"]
[White "DuleMudule"]
[Black "ikhasu"]
[Result "1-0"]
[WhiteElo "2847"]
[BlackElo "2476"]
[TimeControl "180+1"]
[EndTime "8:07:53 PST"]
[Termination "DuleMudule won on time"]

1. d4 {[%clk 0:03:00.9]} 1... d5 {[%clk 0:02:58.8]} 2. Bg5 {[%clk 0:02:59.1]}
2... Nd7 {[%clk 0:02:53.2]} 3. c4 {[%clk 0:02:56.7]} 3... h6 {[%clk 0:02:43.5]}
4. Bh4 {[%clk 0:02:54.6]} 4... c6 {[%clk 0:02:40.7]} 5. cxd5 {[%clk 0:02:53.8]}
5... cxd5 {[%clk 0:02:40.4]} 6. Nc3 {[%clk 0:02:54.4]} 6... Ngf6 {[%clk
0:02:39.8]} 7. e3 {[%clk 0:02:54.9]} 7... g6 {[%clk 0:02:28.6]} 8. Rc1 {[%clk
0:02:49.7]} 8... Bg7 {[%clk 0:02:27.7]} 9. Bd3 {[%clk 0:02:44.2]} 9... O-O
{[%clk 0:02:26.9]} 10. Nf3 {[%clk 0:02:43.6]} 10... a6 {[%clk 0:02:25.7]} 11.
O-O {[%clk 0:02:40.3]} 11... b5 {[%clk 0:02:25.1]} 12. a4 {[%clk 0:02:37.6]}
12... b4 {[%clk 0:02:24.5]} 13. Na2 {[%clk 0:02:37.6]} 13... Qb6 {[%clk
0:02:23.3]} 14. Bg3 {[%clk 0:02:33]} 14... Ra7 {[%clk 0:02:01.5]} 15. Qb3 {[%clk
0:02:23.9]} 15... a5 {[%clk 0:02:00]} 16. Bb5 {[%clk 0:02:05.3]} 16... Ba6
{[%clk 0:01:58.4]} 17. Rc6 {[%clk 0:01:55.9]} 17... Qb7 {[%clk 0:01:58.4]} 18.
Rc7 {[%clk 0:01:55.7]} 18... Qb6 {[%clk 0:01:57.9]} 19. Rfc1 {[%clk 0:01:28.7]}
19... Bxb5 {[%clk 0:01:54.1]} 20. axb5 {[%clk 0:01:17.1]} 20... Rxc7 {[%clk
0:01:50.3]} 21. Rxc7 {[%clk 0:01:18]} 21... Qxb5 {[%clk 0:01:50.3]} 22. Nc3
{[%clk 0:01:17]} 22... Qd3 {[%clk 0:01:43.9]} 23. Qd1 {[%clk 0:00:56.1]} 23...
Qa6 {[%clk 0:01:30.9]} 24. Na4 {[%clk 0:00:51.8]} 24... Qb5 {[%clk 0:01:24.7]}
25. b3 {[%clk 0:00:49.8]} 25... Ne4 {[%clk 0:01:21.8]} 26. Qf1 {[%clk 0:00:49]}
26... Qxf1+ {[%clk 0:01:16.3]} 27. Kxf1 {[%clk 0:00:49.9]} 27... Nxg3+ {[%clk
0:01:02.9]} 28. hxg3 {[%clk 0:00:49.4]} 28... Rd8 {[%clk 0:01:03.1]} 29. Ke2
{[%clk 0:00:41]} 29... Bf6 {[%clk 0:01:00.8]} 30. Ra7 {[%clk 0:00:39.9]} 30...
e5 {[%clk 0:00:57.9]} 31. Rxa5 {[%clk 0:00:34.7]} 31... exd4 {[%clk 0:00:57.4]}
32. exd4 {[%clk 0:00:34.9]} 32... Rc8 {[%clk 0:00:54.2]} 33. Rxd5 {[%clk
0:00:33.7]} 33... Nf8 {[%clk 0:00:40.7]} 34. Rc5 {[%clk 0:00:33.6]} 34... Re8+
{[%clk 0:00:38.3]} 35. Kd3 {[%clk 0:00:30.6]} 35... g5 {[%clk 0:00:36.5]} 36. g4
{[%clk 0:00:29.5]} 36... Ne6 {[%clk 0:00:35.6]} 37. Rf5 {[%clk 0:00:21.4]} 37...
Nf4+ {[%clk 0:00:35.8]} 38. Kc4 {[%clk 0:00:20.9]} 38... Kg7 {[%clk 0:00:33.5]}
39. g3 {[%clk 0:00:21]} 39... Ne2 {[%clk 0:00:32.1]} 40. Nc5 {[%clk 0:00:20.1]}
40... Rc8 {[%clk 0:00:20.3]} 41. Ne5 {[%clk 0:00:18.8]} 41... Rd8 {[%clk
0:00:12]} 42. Nc6 {[%clk 0:00:14]} 42... Rd6 {[%clk 0:00:11.7]} 43. d5 {[%clk
0:00:13.2]} 43... Nc1 {[%clk 0:00:01.4]} 44. Ne4 {[%clk 0:00:11.5]} 1-0

[Event "Early-Titled-Tuesday-Blitz-February-27-2024"]
[Site "Chess.com"]
[Date "2024.02.27"]
[Round "1"]
[White "talaicito"]
[Black "GaiozNigalidze"]
[Result "0-1"]
[WhiteElo "2286"]
[BlackElo "2620"]
[TimeControl "180+1"]
[EndTime "8:07:53 PST"]
[Termination "GaiozNigalidze won on time"]

1. d4 {[%clk 0:03:00.9]} 1... Nf6 {[%clk 0:02:59.6]} 2. Bf4 {[%clk 0:03:00.3]}
2... g6 {[%clk 0:02:58.7]} 3. Nc3 {[%clk 0:03:00.2]} 3... Bg7 {[%clk 0:02:58]}
4. e4 {[%clk 0:03:00.2]} 4... d6 {[%clk 0:02:58]} 5. Qd2 {[%clk 0:03:00.5]} 5...
Nc6 {[%clk 0:02:52.8]} 6. O-O-O {[%clk 0:02:58.7]} 6... O-O {[%clk 0:02:30.7]}
7. Bh6 {[%clk 0:02:47.6]} 7... e5 {[%clk 0:02:30]} 8. d5 {[%clk 0:02:33.6]} 8...
Nd4 {[%clk 0:02:05.4]} 9. f3 {[%clk 0:02:33.2]} 9... Nh5 {[%clk 0:01:52.9]} 10.
Nge2 {[%clk 0:02:16.2]} 10... Nxe2+ {[%clk 0:01:47.8]} 11. Nxe2 {[%clk
0:02:17.1]} 11... Bxh6 {[%clk 0:01:40.9]} 12. Qxh6 {[%clk 0:02:16.1]} 12... Qf6
{[%clk 0:01:41]} 13. h4 {[%clk 0:02:00.9]} 13... Bd7 {[%clk 0:01:26.3]} 14. Qg5
{[%clk 0:01:36]} 14... Qxg5+ {[%clk 0:01:12.6]} 15. hxg5 {[%clk 0:01:36.9]}
15... Bb5 {[%clk 0:01:12.1]} 16. Rh4 {[%clk 0:01:16.6]} 16... Bxe2 {[%clk
0:00:57.9]} 17. Bxe2 {[%clk 0:01:15.9]} 17... Kg7 {[%clk 0:00:58.1]} 18. Rdh1
{[%clk 0:01:03.1]} 18... Rh8 {[%clk 0:00:57.5]} 19. Bb5 {[%clk 0:00:56.3]} 19...
a6 {[%clk 0:00:54.6]} 20. Bd7 {[%clk 0:00:55.6]} 20... Nf4 {[%clk 0:00:34.2]}
21. R1h2 {[%clk 0:00:46]} 21... Rad8 {[%clk 0:00:33.5]} 22. Bg4 {[%clk
0:00:42.2]} 22... Ne2+ {[%clk 0:00:21.4]} 23. Kd2 {[%clk 0:00:40.9]} 23... Nd4
{[%clk 0:00:21.5]} 24. c3 {[%clk 0:00:38.1]} 24... Nb5 {[%clk 0:00:21.2]} 25. a4
{[%clk 0:00:37.4]} 25... Na7 {[%clk 0:00:21.2]} 26. g3 {[%clk 0:00:35.6]} 26...
Rde8 {[%clk 0:00:17.5]} 27. Kd3 {[%clk 0:00:33.5]} 27... c6 {[%clk 0:00:17.2]}
28. dxc6 {[%clk 0:00:19.8]} 28... bxc6 {[%clk 0:00:17]} 29. b4 {[%clk
0:00:18.7]} 29... Re7 {[%clk 0:00:16.2]} 30. a5 {[%clk 0:00:17.6]} 30... Nb5
{[%clk 0:00:15.5]} 31. f4 {[%clk 0:00:13.8]} 31... d5 {[%clk 0:00:14]} 32. f5
{[%clk 0:00:11.9]} 32... dxe4+ {[%clk 0:00:09.5]} 33. Kc4 {[%clk 0:00:11.3]}
33... gxf5 {[%clk 0:00:08.8]} 34. Bxf5 {[%clk 0:00:10.8]} 34... Nd6+ {[%clk
0:00:08.6]} 35. Kc5 {[%clk 0:00:11]} 35... Nxf5 {[%clk 0:00:08.7]} 36. Rxe4
{[%clk 0:00:09.6]} 36... Nxg3 {[%clk 0:00:08.5]} 37. Re3 {[%clk 0:00:09.3]}
37... Nf5 {[%clk 0:00:08.7]} 38. Re4 {[%clk 0:00:09.5]} 38... Rd8 {[%clk
0:00:08.6]} 39. Rf2 {[%clk 0:00:05.2]} 39... Nd6 {[%clk 0:00:07.9]} 40. Rh4
{[%clk 0:00:05.1]} 40... Nb5 {[%clk 0:00:07.1]} 41. Rfh2 {[%clk 0:00:05]} 41...
Rh8 {[%clk 0:00:05.6]} 42. Kxc6 {[%clk 0:00:04.8]} 42... Re6+ {[%clk 0:00:05.5]}
43. Kc5 {[%clk 0:00:04.2]} 43... Nxc3 {[%clk 0:00:05.7]} 0-1

[Event "Early-Titled-Tuesday-Blitz-February-27-2024"]
[Site "Chess.com"]
[Date "2024.02.27"]
[Round "1"]
[White "ExchangeAB"]
[Black "shimastream"]
[Result "0-1"]
[WhiteElo "2521"]
[BlackElo "2979"]
[TimeControl "180+1"]
[EndTime "8:07:58 PST"]
[Termination "shimastream won by resignation"]

1. d4 {[%clk 0:03:00.9]} 1... Nf6 {[%clk 0:02:57.6]} 2. Nf3 {[%clk 0:02:59.9]}
2... b5 {[%clk 0:02:51.2]} 3. c3 {[%clk 0:03:00.8]} 3... e6 {[%clk 0:02:47.3]}
4. Bf4 {[%clk 0:02:58.5]} 4... Bb7 {[%clk 0:02:43]} 5. e3 {[%clk 0:02:58.5]}
5... a6 {[%clk 0:02:42.4]} 6. Nbd2 {[%clk 0:02:58.6]} 6... c5 {[%clk 0:02:41.4]}
7. Bd3 {[%clk 0:02:58.1]} 7... Be7 {[%clk 0:02:40.1]} 8. O-O {[%clk 0:02:57.9]}
8... O-O {[%clk 0:02:39.9]} 9. e4 {[%clk 0:02:45.2]} 9... d6 {[%clk 0:02:30.5]}
10. h3 {[%clk 0:02:41.7]} 10... Nc6 {[%clk 0:02:29.1]} 11. Qe2 {[%clk
0:02:39.3]} 11... cxd4 {[%clk 0:02:18.4]} 12. cxd4 {[%clk 0:02:38.7]} 12... Rc8
{[%clk 0:02:17.2]} 13. Rac1 {[%clk 0:02:36.1]} 13... Nd7 {[%clk 0:01:51.5]} 14.
Bb1 {[%clk 0:02:30.4]} 14... Nb6 {[%clk 0:01:47.9]} 15. Rfd1 {[%clk 0:02:23.2]}
15... Qd7 {[%clk 0:01:46.5]} 16. Nf1 {[%clk 0:02:19]} 16... Na5 {[%clk
0:01:25.1]} 17. Ng3 {[%clk 0:02:13.6]} 17... Rxc1 {[%clk 0:01:17.3]} 18. Rxc1
{[%clk 0:02:14.5]} 18... Rc8 {[%clk 0:01:17.6]} 19. Rxc8+ {[%clk 0:02:09.5]}
19... Qxc8 {[%clk 0:01:18.5]} 20. Qc2 {[%clk 0:02:09.8]} 20... Qd8 {[%clk
0:01:12.9]} 21. b3 {[%clk 0:02:05.7]} 21... Nc6 {[%clk 0:01:12.1]} 22. d5 {[%clk
0:01:53.8]} 22... Nb8 {[%clk 0:00:31.3]} 23. e5 {[%clk 0:01:48.9]} 23... g6
{[%clk 0:00:31.4]} 24. exd6 {[%clk 0:01:46]} 24... Bxd6 {[%clk 0:00:30.9]} 25.
Bxd6 {[%clk 0:01:43.9]} 25... Qxd6 {[%clk 0:00:31.8]} 26. Ne4 {[%clk 0:01:39.4]}
26... Qd8 {[%clk 0:00:17.2]} 27. dxe6 {[%clk 0:01:33.8]} 27... fxe6 {[%clk
0:00:18.1]} 28. Ne5 {[%clk 0:01:22.1]} 28... N8d7 {[%clk 0:00:12.7]} 29. Nxd7
{[%clk 0:01:08.6]} 29... Nxd7 {[%clk 0:00:13.6]} 30. Nd6 {[%clk 0:01:05.4]}
30... Bd5 {[%clk 0:00:13.6]} 31. Qc8 {[%clk 0:00:51.2]} 31... Qxc8 {[%clk
0:00:12.8]} 32. Nxc8 {[%clk 0:00:52.1]} 32... Kf8 {[%clk 0:00:12.9]} 33. Nd6
{[%clk 0:00:52.5]} 33... Ke7 {[%clk 0:00:11.4]} 34. Ne4 {[%clk 0:00:52.8]} 34...
Bxe4 {[%clk 0:00:10.7]} 35. Bxe4 {[%clk 0:00:53.7]} 35... b4 {[%clk 0:00:11.4]}
36. Kf1 {[%clk 0:00:52.5]} 36... Kd6 {[%clk 0:00:11.1]} 37. Ke2 {[%clk
0:00:52.4]} 37... Nf6 {[%clk 0:00:10.6]} 38. Ke3 {[%clk 0:00:51.3]} 38... a5
{[%clk 0:00:10.4]} 39. f4 {[%clk 0:00:50.7]} 39... e5 {[%clk 0:00:10.5]} 40. f5
{[%clk 0:00:48.3]} 40... g5 {[%clk 0:00:09.7]} 41. g4 {[%clk 0:00:47.2]} 41...
h6 {[%clk 0:00:09.6]} 42. Bf3 {[%clk 0:00:46.5]} 42... Nd7 {[%clk 0:00:09.7]}
43. Bd1 {[%clk 0:00:43.7]} 43... Nb6 {[%clk 0:00:09.8]} 44. Bf3 {[%clk
0:00:42.7]} 44... Kc5 {[%clk 0:00:09]} 45. Bg2 {[%clk 0:00:42.5]} 45... Kd6
{[%clk 0:00:08.6]} 46. Bf3 {[%clk 0:00:42.7]} 46... Nc8 {[%clk 0:00:09]} 47. Be4
{[%clk 0:00:42.6]} 47... Na7 {[%clk 0:00:07.9]} 48. Bd3 {[%clk 0:00:41.8]} 48...
Nc6 {[%clk 0:00:07.8]} 49. Be2 {[%clk 0:00:41.6]} 49... Nd4 {[%clk 0:00:07.9]}
50. Bd1 {[%clk 0:00:41.9]} 50... Nb5 {[%clk 0:00:07.9]} 51. Kd2 {[%clk
0:00:30.7]} 51... e4 {[%clk 0:00:06.5]} 52. Bc2 {[%clk 0:00:28.2]} 52... Ke5
{[%clk 0:00:06.3]} 53. Ke3 {[%clk 0:00:26.5]} 53... Nc3 {[%clk 0:00:06.7]} 54.
f6 {[%clk 0:00:24.4]} 54... Nd5+ {[%clk 0:00:06.9]} 55. Ke2 {[%clk 0:00:24.3]}
55... Nxf6 {[%clk 0:00:07.8]} 56. Ke3 {[%clk 0:00:24.1]} 56... Nd5+ {[%clk
0:00:08.2]} 57. Ke2 {[%clk 0:00:24.6]} 57... Kd4 {[%clk 0:00:08.9]} 0-1

[Event "Early-Titled-Tuesday-Blitz-February-27-2024"]
[Site "Chess.com"]
[Date "2024.02.27"]
[Round "1"]
[White "FernandoArauzAlonso"]
[Black "Orest_Vovk"]
[Result "1-0"]
[WhiteElo "2661"]
[BlackElo "2568"]
[TimeControl "180+1"]
[EndTime "8:07:59 PST"]
[Termination "FernandoArauzAlonso won by resignation"]

1. Nf3 {[%clk 0:03:00]} 1... h6 {[%clk 0:02:49.4]} 2. g3 {[%clk 0:02:54.3]} 2...
g5 {[%clk 0:02:48.3]} 3. d3 {[%clk 0:02:48.5]} 3... g4 {[%clk 0:02:47.5]} 4. Nh4
{[%clk 0:02:30.1]} 4... d5 {[%clk 0:02:44.4]} 5. b3 {[%clk 0:02:25.7]} 5... Bg7
{[%clk 0:02:44]} 6. c3 {[%clk 0:02:13.9]} 6... Nc6 {[%clk 0:02:40.2]} 7. Bb2
{[%clk 0:02:12.9]} 7... e5 {[%clk 0:02:39.6]} 8. Nd2 {[%clk 0:02:08.7]} 8... Be6
{[%clk 0:02:39.2]} 9. e4 {[%clk 0:01:57.1]} 9... Nf6 {[%clk 0:02:28.9]} 10. Qc2
{[%clk 0:01:51.1]} 10... d4 {[%clk 0:02:23.5]} 11. c4 {[%clk 0:01:35.2]} 11...
Nh5 {[%clk 0:02:11.7]} 12. f3 {[%clk 0:01:29.7]} 12... Bf6 {[%clk 0:02:01.4]}
13. fxg4 {[%clk 0:01:20]} 13... Bxg4 {[%clk 0:02:00]} 14. Nhf3 {[%clk
0:01:20.1]} 14... Nb4 {[%clk 0:01:50]} 15. Qb1 {[%clk 0:01:18.6]} 15... c5
{[%clk 0:01:47.6]} 16. a3 {[%clk 0:01:16.3]} 16... Nc6 {[%clk 0:01:47.5]} 17.
Be2 {[%clk 0:01:13.4]} 17... Bg5 {[%clk 0:01:46]} 18. Qd1 {[%clk 0:01:00.8]}
18... Be3 {[%clk 0:01:19.5]} 19. Nf1 {[%clk 0:00:54.9]} 19... Qf6 {[%clk
0:01:08.4]} 20. Nxe3 {[%clk 0:00:39.7]} 20... dxe3 {[%clk 0:01:08.4]} 21. Bc1
{[%clk 0:00:40.4]} 21... Nd4 {[%clk 0:01:03.1]} 22. O-O {[%clk 0:00:35.1]} 22...
Bh3 {[%clk 0:00:46.6]} 23. Nxd4 {[%clk 0:00:26.2]} 23... Bxf1 {[%clk 0:00:45.3]}
24. Nf5 {[%clk 0:00:23.1]} 24... Bxe2 {[%clk 0:00:39.5]} 25. Qxe2 {[%clk
0:00:23.1]} 25... Ng7 {[%clk 0:00:39.5]} 26. Nxg7+ {[%clk 0:00:21.5]} 26... Qxg7
{[%clk 0:00:39.1]} 27. Bxe3 {[%clk 0:00:22.2]} 27... b6 {[%clk 0:00:34.4]} 28.
Rf1 {[%clk 0:00:22.2]} 28... O-O-O {[%clk 0:00:33.3]} 29. Qh5 {[%clk 0:00:21.8]}
29... f6 {[%clk 0:00:20.6]} 30. b4 {[%clk 0:00:20.7]} 30... Rxd3 {[%clk
0:00:17.6]} 31. Bf2 {[%clk 0:00:17.5]} 31... cxb4 {[%clk 0:00:15.9]} 32. axb4
{[%clk 0:00:17.5]} 32... Rhd8 {[%clk 0:00:14.8]} 33. c5 {[%clk 0:00:17.2]} 33...
bxc5 {[%clk 0:00:13.7]} 34. Bxc5 {[%clk 0:00:14.2]} 34... Qd7 {[%clk 0:00:10.9]}
35. Qxh6 {[%clk 0:00:12.2]} 35... Rd1 {[%clk 0:00:08]} 36. Qxf6 {[%clk
0:00:10.7]} 36... Rxf1+ {[%clk 0:00:08.2]} 37. Qxf1 {[%clk 0:00:11.3]} 37... Kb7
{[%clk 0:00:04.4]} 38. Qf5 {[%clk 0:00:05.5]} 38... Qd1+ {[%clk 0:00:03.7]} 39.
Kg2 {[%clk 0:00:06]} 39... Qd2+ {[%clk 0:00:03.7]} 40. Kh3 {[%clk 0:00:05.7]}
40... Qd7 {[%clk 0:00:03.9]} 41. g4 {[%clk 0:00:05.5]} 41... Qxf5 {[%clk
0:00:03.3]} 42. exf5 {[%clk 0:00:06.1]} 42... Kc6 {[%clk 0:00:03.8]} 43. f6
{[%clk 0:00:06.2]} 43... e4 {[%clk 0:00:04]} 44. f7 {[%clk 0:00:06.3]} 44... e3
{[%clk 0:00:04.5]} 45. Kg2 {[%clk 0:00:06.8]} 45... e2 {[%clk 0:00:04.3]} 46.
Kf2 {[%clk 0:00:07.1]} 46... a5 {[%clk 0:00:04.9]} 47. f8=Q {[%clk 0:00:05.6]}
47... Rxf8+ {[%clk 0:00:05.1]} 48. Bxf8 {[%clk 0:00:06]} 48... a4 {[%clk
0:00:05.2]} 49. Kxe2 {[%clk 0:00:05.4]} 49... Kd5 {[%clk 0:00:05.3]} 50. b5
{[%clk 0:00:05.4]} 50... a3 {[%clk 0:00:05.2]} 51. Bxa3 {[%clk 0:00:05.3]} 1-0

[Event "Early-Titled-Tuesday-Blitz-February-27-2024"]
[Site "Chess.com"]
[Date "2024.02.27"]
[Round "1"]
[White "Tonychess32"]
[Black "artin10862"]
[Result "1-0"]
[WhiteElo "2521"]
[BlackElo "2888"]
[TimeControl "180+1"]
[EndTime "8:08:00 PST"]
[Termination "Tonychess32 won by resignation"]

1. c4 {[%clk 0:03:00.9]} 1... e5 {[%clk 0:02:45.7]} 2. e3 {[%clk 0:02:59.7]}
2... Nf6 {[%clk 0:02:42.1]} 3. Nc3 {[%clk 0:03:00.1]} 3... d6 {[%clk 0:02:42.1]}
4. d3 {[%clk 0:02:59.9]} 4... g6 {[%clk 0:02:41.7]} 5. Nf3 {[%clk 0:03:00.2]}
5... Bg7 {[%clk 0:02:42.2]} 6. Be2 {[%clk 0:03:00.1]} 6... O-O {[%clk
0:02:42.8]} 7. O-O {[%clk 0:03:00]} 7... Re8 {[%clk 0:02:42.8]} 8. Re1 {[%clk
0:02:59.3]} 8... c6 {[%clk 0:02:41.7]} 9. a3 {[%clk 0:02:53.1]} 9... d5 {[%clk
0:02:39.4]} 10. b4 {[%clk 0:02:45.4]} 10... e4 {[%clk 0:02:17.5]} 11. Nd4 {[%clk
0:02:34.7]} 11... exd3 {[%clk 0:02:13.2]} 12. Bxd3 {[%clk 0:02:34.7]} 12... dxc4
{[%clk 0:02:12.9]} 13. Bxc4 {[%clk 0:02:35.6]} 13... Nbd7 {[%clk 0:02:12.3]} 14.
Bb2 {[%clk 0:02:32]} 14... Qe7 {[%clk 0:01:51.5]} 15. Qe2 {[%clk 0:02:15.7]}
15... a5 {[%clk 0:01:45.5]} 16. b5 {[%clk 0:02:13.8]} 16... c5 {[%clk
0:01:45.2]} 17. Nf3 {[%clk 0:02:14.2]} 17... Nb6 {[%clk 0:01:41.7]} 18. Ba2
{[%clk 0:02:08.3]} 18... Be6 {[%clk 0:01:41.2]} 19. Bxe6 {[%clk 0:02:08.5]}
19... Qxe6 {[%clk 0:01:41.3]} 20. Rad1 {[%clk 0:02:06.2]} 20... Qb3 {[%clk
0:01:32.4]} 21. Rb1 {[%clk 0:02:02.9]} 21... Rad8 {[%clk 0:01:28.6]} 22. Rec1
{[%clk 0:01:59.5]} 22... Qe6 {[%clk 0:01:21.6]} 23. a4 {[%clk 0:01:53.7]} 23...
Ne4 {[%clk 0:01:12.9]} 24. Nxe4 {[%clk 0:01:51.5]} 24... Qxe4 {[%clk 0:01:12.7]}
25. Bxg7 {[%clk 0:01:51.1]} 25... Kxg7 {[%clk 0:01:13]} 26. Qe1 {[%clk
0:01:43.9]} 26... Nxa4 {[%clk 0:01:04.8]} 27. Ra1 {[%clk 0:01:44]} 27... b6
{[%clk 0:00:53]} 28. Qe2 {[%clk 0:01:39]} 28... Qb4 {[%clk 0:00:47.3]} 29. Qc2
{[%clk 0:01:33.1]} 29... Re4 {[%clk 0:00:42.1]} 30. h3 {[%clk 0:01:22.6]} 30...
h6 {[%clk 0:00:24.7]} 31. Rab1 {[%clk 0:01:11.8]} 31... Nc3 {[%clk 0:00:15]} 32.
Rxb4 {[%clk 0:01:09.7]} 32... axb4 {[%clk 0:00:15.7]} 33. Qb2 {[%clk 0:01:07.2]}
33... Kg8 {[%clk 0:00:07.8]} 34. Rxc3 {[%clk 0:01:06]} 34... bxc3 {[%clk
0:00:08.7]} 35. Qxc3 {[%clk 0:01:06.8]} 35... Re6 {[%clk 0:00:08.9]} 36. Qa3
{[%clk 0:00:58.2]} 36... Kg7 {[%clk 0:00:08.3]} 37. Qb2+ {[%clk 0:00:57.9]}
37... Kg8 {[%clk 0:00:08.4]} 38. Kh2 {[%clk 0:00:54.5]} 38... Red6 {[%clk
0:00:08.2]} 39. Qe5 {[%clk 0:00:50.1]} 39... Re6 {[%clk 0:00:07.6]} 40. Qc7
{[%clk 0:00:49.8]} 40... Rd5 {[%clk 0:00:05.8]} 41. e4 {[%clk 0:00:48.3]} 41...
Rd1 {[%clk 0:00:02.4]} 42. e5 {[%clk 0:00:45.4]} 42... Rd5 {[%clk 0:00:01.8]}
43. Qa7 {[%clk 0:00:39]} 43... Kg7 {[%clk 0:00:01.9]} 44. Qa4 {[%clk 0:00:38.6]}
44... Rd7 {[%clk 0:00:02.6]} 45. Qc4 {[%clk 0:00:38.7]} 45... Rd1 {[%clk
0:00:02.7]} 46. Qe4 {[%clk 0:00:38.2]} 46... Rd8 {[%clk 0:00:03.3]} 47. g4
{[%clk 0:00:37.9]} 47... Rde8 {[%clk 0:00:03.6]} 48. Qf4 {[%clk 0:00:36.3]}
48... R8e7 {[%clk 0:00:04.1]} 49. h4 {[%clk 0:00:36.5]} 49... Re8 {[%clk
0:00:04.1]} 50. g5 {[%clk 0:00:37]} 50... hxg5 {[%clk 0:00:04]} 51. Nxg5 {[%clk
0:00:37.1]} 51... R6e7 {[%clk 0:00:04.1]} 52. Qf6+ {[%clk 0:00:36.7]} 52... Kg8
{[%clk 0:00:04.5]} 53. e6 {[%clk 0:00:37.1]} 53... fxe6 {[%clk 0:00:05.2]} 54.
Qxg6+ {[%clk 0:00:37.1]} 54... Kf8 {[%clk 0:00:05.8]} 55. Nh7+ {[%clk
0:00:36.1]} 55... Rxh7 {[%clk 0:00:06.4]} 56. Qxh7 {[%clk 0:00:37]} 56... Re7
{[%clk 0:00:06.8]} 57. Qh6+ {[%clk 0:00:36.9]} 57... Ke8 {[%clk 0:00:06.9]} 58.
Qh8+ {[%clk 0:00:36.6]} 58... Kd7 {[%clk 0:00:07.4]} 59. Qe5 {[%clk 0:00:37.5]}
59... Rf7 {[%clk 0:00:07.8]} 60. Kg3 {[%clk 0:00:36.8]} 60... Rf5 {[%clk
0:00:08.2]} 61. Qe4 {[%clk 0:00:36.3]} 61... Kd6 {[%clk 0:00:08.7]} 62. Qc6+
{[%clk 0:00:36.1]} 62... Ke7 {[%clk 0:00:08.9]} 63. Qxb6 {[%clk 0:00:36.3]}
63... Rd5 {[%clk 0:00:09.4]} 64. Qc7+ {[%clk 0:00:36.2]} 1-0

[Event "Early-Titled-Tuesday-Blitz-February-27-2024"]
[Site "Chess.com"]
[Date "2024.02.27"]
[Round "1"]
[White "GilbertoHernandezAmura"]
[Black "starworld123"]
[Result "0-1"]
[WhiteElo "2471"]
[BlackElo "2839"]
[TimeControl "180+1"]
[EndTime "8:08:01 PST"]
[Termination "starworld123 won by resignation"]

1. e4 {[%clk 0:03:00.9]} 1... e6 {[%clk 0:02:59.1]} 2. Nc3 {[%clk 0:02:58.1]}
2... d5 {[%clk 0:02:59.2]} 3. d3 {[%clk 0:02:57.5]} 3... Nf6 {[%clk 0:02:57.3]}
4. e5 {[%clk 0:02:50.4]} 4... Nfd7 {[%clk 0:02:57.2]} 5. Nf3 {[%clk 0:02:50.7]}
5... c5 {[%clk 0:02:55.7]} 6. h4 {[%clk 0:02:46.8]} 6... Nc6 {[%clk 0:02:55.2]}
7. Bf4 {[%clk 0:02:42.7]} 7... Be7 {[%clk 0:02:38.8]} 8. g3 {[%clk 0:02:40]}
8... b6 {[%clk 0:02:38.2]} 9. Bg2 {[%clk 0:02:37.9]} 9... Bb7 {[%clk 0:02:38.7]}
10. O-O {[%clk 0:02:32.5]} 10... a6 {[%clk 0:02:38.3]} 11. a4 {[%clk 0:02:31.3]}
11... Qc7 {[%clk 0:02:38]} 12. Re1 {[%clk 0:02:29.6]} 12... h6 {[%clk
0:02:31.2]} 13. h5 {[%clk 0:02:24.5]} 13... g5 {[%clk 0:02:19.4]} 14. hxg6
{[%clk 0:02:23.4]} 14... fxg6 {[%clk 0:02:20.3]} 15. Bh3 {[%clk 0:02:14.7]}
15... Nf8 {[%clk 0:02:20.1]} 16. d4 {[%clk 0:01:57.6]} 16... Rg8 {[%clk
0:02:10.3]} 17. Bxh6 {[%clk 0:01:43.7]} 17... Nd8 {[%clk 0:01:51.9]} 18. Qd2
{[%clk 0:01:33.4]} 18... Nf7 {[%clk 0:01:49.1]} 19. Bxf8 {[%clk 0:01:33.5]}
19... Rxf8 {[%clk 0:01:44.9]} 20. Bxe6 {[%clk 0:01:32.6]} 20... cxd4 {[%clk
0:01:37.6]} 21. Nxd5 {[%clk 0:01:29.3]} 21... Qc5 {[%clk 0:01:29]} 22. b4 {[%clk
0:01:17.3]} 22... Qc6 {[%clk 0:00:46.4]} 23. Nxd4 {[%clk 0:01:12.6]} 23... Ng5
{[%clk 0:00:46.7]} 24. Re3 {[%clk 0:00:34]} 24... Qxd5 {[%clk 0:00:29.4]} 25.
Bxd5 {[%clk 0:00:33.3]} 25... Bxd5 {[%clk 0:00:30.3]} 26. f4 {[%clk 0:00:19.8]}
26... Rh8 {[%clk 0:00:16.8]} 27. fxg5 {[%clk 0:00:11.3]} 27... Rh1+ {[%clk
0:00:16.5]} 28. Kf2 {[%clk 0:00:11.8]} 28... Rh2+ {[%clk 0:00:15.4]} 29. Ke1
{[%clk 0:00:12.3]} 29... Rxd2 {[%clk 0:00:15.2]} 30. Kxd2 {[%clk 0:00:13.2]}
30... Bxg5 {[%clk 0:00:15.6]} 31. Rf1 {[%clk 0:00:11.1]} 31... Rc8 {[%clk
0:00:13.9]} 32. c3 {[%clk 0:00:03.5]} 32... Bxe3+ {[%clk 0:00:12.5]} 33. Kxe3
{[%clk 0:00:04.4]} 33... Rxc3+ {[%clk 0:00:13.4]} 34. Kf4 {[%clk 0:00:05]} 34...
Rc4 {[%clk 0:00:11.5]} 35. Ke3 {[%clk 0:00:05.6]} 35... Rxb4 {[%clk 0:00:11.8]}
36. Rf6 {[%clk 0:00:06]} 36... g5 {[%clk 0:00:09.4]} 37. a5 {[%clk 0:00:06]}
37... bxa5 {[%clk 0:00:09.5]} 38. Rxa6 {[%clk 0:00:06.7]} 38... a4 {[%clk
0:00:10.3]} 39. Nf5 {[%clk 0:00:05.6]} 39... Re4+ {[%clk 0:00:09.2]} 40. Kd3
{[%clk 0:00:05]} 40... Rxe5 {[%clk 0:00:09.9]} 41. Nd6+ {[%clk 0:00:05.3]} 41...
Kd7 {[%clk 0:00:10.5]} 42. Nb5 {[%clk 0:00:03.6]} 42... Be4+ {[%clk 0:00:08.9]}
43. Kc4 {[%clk 0:00:03.4]} 43... Rxb5 {[%clk 0:00:09.5]} 44. Ra7+ {[%clk
0:00:01.2]} 44... Rb7 {[%clk 0:00:10]} 45. Rxa4 {[%clk 0:00:01.9]} 45... Ke6
{[%clk 0:00:09.1]} 46. Ra5 {[%clk 0:00:02.4]} 46... g4 {[%clk 0:00:09]} 47. Kd4
{[%clk 0:00:02.9]} 47... Bf3 {[%clk 0:00:09.6]} 48. Ke3 {[%clk 0:00:03.5]} 48...
Rd7 {[%clk 0:00:10.1]} 49. Kf4 {[%clk 0:00:04]} 49... Rd4+ {[%clk 0:00:10.3]}
50. Kg5 {[%clk 0:00:04.6]} 50... Rd5+ {[%clk 0:00:11]} 0-1